{"text_format":"3","workbook":"xlsx","n_sheets":1,"sheets":["Izračunavanje kredita"],"not_rendered":{"defined_names":9},"read":"whole","date_system":"1900"}

{"sheet":"Izračunavanje kredita","index":0,"n_rows":22,"n_cols":13,"rows_kept":22,"merged":[[1,1,1,3],[1,6,2,8],[1,11,2,12],[2,1,2,3],[6,5,6,6],[7,5,7,6],[10,2,10,5],[10,6,10,8],[10,9,10,12],[18,2,18,12]]}
[]
[null,"IZRAČUNAVANJE STUDENTSKOG ",{"$nulls":4},{"v":50000,"d":"50,000 kn"},{"$nulls":4},"2011-05-10"]
[null,"KREDITA "]
[]
[null," Preporučljivo je da ukupni iznos mjesečne rate za otplatu studentskog kredita ne bude veći od 8% godišnje zarade prve godine."]
[]
[null,null,"Vaša kombinirana trenutna mjesečna uplata iznosi:",null,null,{"$f":"StudentskiKrediti[[#Totals],[Trenutna mjesečna uplata]]","v":{"v":328.58590726058833,"d":"328.59 kn"}},null,null,"Vaša kombinirana trenutna mjesečna rata iznosi:",{"$nulls":3},{"$f":"StudentskiKrediti[[#Totals],[Rata]]","v":{"v":328.58590726058833,"d":"328.59 kn"}}]
[null,null,"Postotak mjesečnog prihoda:",null,null,{"$f":"StudentskiKrediti[[#Totals],[Trenutna mjesečna uplata]]/OčekivaniMjesečniPrihod","v":{"v":0.07886061774254119,"d":"7.89%"}},null,null,"  Postotak mjesečnog prihoda:",{"$nulls":3},{"$f":"StudentskiKrediti[[#Totals],[Rata]]/OčekivaniMjesečniPrihod","v":{"v":0.07886061774254119,"d":"7.89%"}}]
[]
[]
[null,null,"OPĆENITI PODACI O KREDITU",{"$nulls":3},"PODACI O OTPLATI KREDITA",null,null,"DETALJI O PLAĆANJU"]
[null,null,"Br. kredita","Kreditor","Iznos kredita","Godišnja kamatna stopa","Datum početka","Trajanje (godine)","Datum završetka","Trenutna mjesečna uplata","Ukupna kamata","Rata","Godišnja uplata"]
[null,null,"10998M88","Kreditor 1",{"v":10000,"d":"10,000.00 kn"},{"v":0.05,"d":"5.00%"},"2011-04-01",10,{"$f":"IF(AND(StudentskiKrediti[[#This Row],[Datum početka]]>0,StudentskiKrediti[[#This Row],[Trajanje (godine)]]>0),EDATE(StudentskiKrediti[[#This Row],[Datum početka]],StudentskiKrediti[[#This Row],[Trajanje (godine)]]*12),\"\")","v":"2021-04-01"},{"$f":"IF(AND(RazdobljaOtplateKreditaPočinjeDanas,COUNT(StudentskiKrediti[[#This Row],[Iznos kredita]]:StudentskiKrediti[[#This Row],[Trajanje (godine)]])=4,StudentskiKrediti[[#This Row],[Datum početka]]<TODAY()),PMT(StudentskiKrediti[[#This Row],[Godišnja kamatna stopa]]/12,StudentskiKrediti[[#This Row],[Trajanje (godine)]]*12,-StudentskiKrediti[[#This Row],[Iznos kredita]],0,0),\"\")","v":{"v":106.06551523907524,"d":"106.07 kn"}},{"$f":"IFERROR((StudentskiKrediti[[#This Row],[Rata]]*(StudentskiKrediti[[#This Row],[Trajanje (godine)]]*12))-StudentskiKrediti[[#This Row],[Iznos kredita]],\"\")","v":{"v":2727.8618286890287,"d":"2,727.86 kn"}},{"$f":"IF(COUNTA(StudentskiKrediti[[#This Row],[Iznos kredita]]:StudentskiKrediti[[#This Row],[Trajanje (godine)]])<>4,\"\",PMT(StudentskiKrediti[[#This Row],[Godišnja kamatna stopa]]/12,StudentskiKrediti[[#This Row],[Trajanje (godine)]]*12,-StudentskiKrediti[[#This Row],[Iznos kredita]],0,0))","v":{"v":106.06551523907524,"d":"106.07 kn"}},{"$f":"IFERROR(StudentskiKrediti[[#This Row],[Rata]]*12,\"\")","v":{"v":1272.7861828689029,"d":"1,272.79 kn"}}]
[null,null,"20987N87","Kreditor 2",{"v":8000,"d":"8,000.00 kn"},{"v":0.05,"d":"5.00%"},"2011-05-01",10,{"$f":"IF(AND(StudentskiKrediti[[#This Row],[Datum početka]]>0,StudentskiKrediti[[#This Row],[Trajanje (godine)]]>0),EDATE(StudentskiKrediti[[#This Row],[Datum početka]],StudentskiKrediti[[#This Row],[Trajanje (godine)]]*12),\"\")","v":"2021-05-01"},{"$f":"IF(AND(RazdobljaOtplateKreditaPočinjeDanas,COUNT(StudentskiKrediti[[#This Row],[Iznos kredita]]:StudentskiKrediti[[#This Row],[Trajanje (godine)]])=4,StudentskiKrediti[[#This Row],[Datum početka]]<TODAY()),PMT(StudentskiKrediti[[#This Row],[Godišnja kamatna stopa]]/12,StudentskiKrediti[[#This Row],[Trajanje (godine)]]*12,-StudentskiKrediti[[#This Row],[Iznos kredita]],0,0),\"\")","v":{"v":84.85241219126019,"d":"84.85 kn"}},{"$f":"IFERROR((StudentskiKrediti[[#This Row],[Rata]]*(StudentskiKrediti[[#This Row],[Trajanje (godine)]]*12))-StudentskiKrediti[[#This Row],[Iznos kredita]],\"\")","v":{"v":2182.289462951223,"d":"2,182.29 kn"}},{"$f":"IF(COUNTA(StudentskiKrediti[[#This Row],[Iznos kredita]]:StudentskiKrediti[[#This Row],[Trajanje (godine)]])<>4,\"\",PMT(StudentskiKrediti[[#This Row],[Godišnja kamatna stopa]]/12,StudentskiKrediti[[#This Row],[Trajanje (godine)]]*12,-StudentskiKrediti[[#This Row],[Iznos kredita]],0,0))","v":{"v":84.85241219126019,"d":"84.85 kn"}},{"$f":"IFERROR(StudentskiKrediti[[#This Row],[Rata]]*12,\"\")","v":{"v":1018.2289462951222,"d":"1,018.23 kn"}}]
[null,null,"36785LM","Kreditor 3",{"v":6000,"d":"6,000.00 kn"},{"v":0.045,"d":"4.50%"},"2012-03-01",10,{"$f":"IF(AND(StudentskiKrediti[[#This Row],[Datum početka]]>0,StudentskiKrediti[[#This Row],[Trajanje (godine)]]>0),EDATE(StudentskiKrediti[[#This Row],[Datum početka]],StudentskiKrediti[[#This Row],[Trajanje (godine)]]*12),\"\")","v":"2022-03-01"},{"$f":"IF(AND(RazdobljaOtplateKreditaPočinjeDanas,COUNT(StudentskiKrediti[[#This Row],[Iznos kredita]]:StudentskiKrediti[[#This Row],[Trajanje (godine)]])=4,StudentskiKrediti[[#This Row],[Datum početka]]<TODAY()),PMT(StudentskiKrediti[[#This Row],[Godišnja kamatna stopa]]/12,StudentskiKrediti[[#This Row],[Trajanje (godine)]]*12,-StudentskiKrediti[[#This Row],[Iznos kredita]],0,0),\"\")","v":{"v":62.18304525420918,"d":"62.18 kn"}},{"$f":"IFERROR((StudentskiKrediti[[#This Row],[Rata]]*(StudentskiKrediti[[#This Row],[Trajanje (godine)]]*12))-StudentskiKrediti[[#This Row],[Iznos kredita]],\"\")","v":{"v":1461.9654305051017,"d":"1,461.97 kn"}},{"$f":"IF(COUNTA(StudentskiKrediti[[#This Row],[Iznos kredita]]:StudentskiKrediti[[#This Row],[Trajanje (godine)]])<>4,\"\",PMT(StudentskiKrediti[[#This Row],[Godišnja kamatna stopa]]/12,StudentskiKrediti[[#This Row],[Trajanje (godine)]]*12,-StudentskiKrediti[[#This Row],[Iznos kredita]],0,0))","v":{"v":62.18304525420918,"d":"62.18 kn"}},{"$f":"IFERROR(StudentskiKrediti[[#This Row],[Rata]]*12,\"\")","v":{"v":746.1965430505102,"d":"746.20 kn"}}]
[null,null,"765R43","Kreditor 4",{"v":4000,"d":"4,000.00 kn"},{"v":0.05,"d":"5.00%"},"2012-05-01",5,{"$f":"IF(AND(StudentskiKrediti[[#This Row],[Datum početka]]>0,StudentskiKrediti[[#This Row],[Trajanje (godine)]]>0),EDATE(StudentskiKrediti[[#This Row],[Datum početka]],StudentskiKrediti[[#This Row],[Trajanje (godine)]]*12),\"\")","v":"2017-05-01"},{"$f":"IF(AND(RazdobljaOtplateKreditaPočinjeDanas,COUNT(StudentskiKrediti[[#This Row],[Iznos kredita]]:StudentskiKrediti[[#This Row],[Trajanje (godine)]])=4,StudentskiKrediti[[#This Row],[Datum početka]]<TODAY()),PMT(StudentskiKrediti[[#This Row],[Godišnja kamatna stopa]]/12,StudentskiKrediti[[#This Row],[Trajanje (godine)]]*12,-StudentskiKrediti[[#This Row],[Iznos kredita]],0,0),\"\")","v":{"v":75.48493457604374,"d":"75.48 kn"}},{"$f":"IFERROR((StudentskiKrediti[[#This Row],[Rata]]*(StudentskiKrediti[[#This Row],[Trajanje (godine)]]*12))-StudentskiKrediti[[#This Row],[Iznos kredita]],\"\")","v":{"v":529.0960745626244,"d":"529.10 kn"}},{"$f":"IF(COUNTA(StudentskiKrediti[[#This Row],[Iznos kredita]]:StudentskiKrediti[[#This Row],[Trajanje (godine)]])<>4,\"\",PMT(StudentskiKrediti[[#This Row],[Godišnja kamatna stopa]]/12,StudentskiKrediti[[#This Row],[Trajanje (godine)]]*12,-StudentskiKrediti[[#This Row],[Iznos kredita]],0,0))","v":{"v":75.48493457604374,"d":"75.48 kn"}},{"$f":"IFERROR(StudentskiKrediti[[#This Row],[Rata]]*12,\"\")","v":{"v":905.8192149125249,"d":"905.82 kn"}}]
[null,null,"Ukupne vrijednosti",null,{"$f":"SUBTOTAL(109,StudentskiKrediti[Iznos kredita])","v":{"v":28000,"d":"28,000.00 kn"}},{"$nulls":4},{"$f":"SUBTOTAL(109,StudentskiKrediti[Trenutna mjesečna uplata])","v":{"v":328.58590726058833,"d":"328.59 kn"}},{"$f":"SUBTOTAL(109,StudentskiKrediti[Ukupna kamata])","v":{"v":6901.212796707978,"d":"6,901.21 kn"}},{"$f":"SUBTOTAL(109,StudentskiKrediti[Rata])","v":{"v":328.58590726058833,"d":"328.59 kn"}},{"$f":"SUBTOTAL(109,StudentskiKrediti[Godišnja uplata])","v":{"v":3943.03088712706,"d":"3,943.03 kn"}}]
[null,null,"Prosječne vrijednosti",null,{"$f":"AVERAGE(StudentskiKrediti[Iznos kredita])","v":{"v":7000,"d":"7,000.00 kn"}},{"$f":"AVERAGE(StudentskiKrediti[Godišnja kamatna stopa])","v":{"v":0.04875,"d":"4.88%"}},{"$nulls":4},{"$f":"AVERAGE(StudentskiKrediti[Ukupna kamata])","v":{"v":1725.3031991769944,"d":"1,725.30 kn"}},null,{"$f":"AVERAGE(StudentskiKrediti[Godišnja uplata])","v":{"v":985.757721781765,"d":"985.76 kn"}}]
[]
[{"$nulls":10},"Ukupna konsolidirana otplata kredita:",null,{"$f":"StudentskiKrediti[[#Totals],[Iznos kredita]]+StudentskiKrediti[[#Totals],[Ukupna kamata]]","v":{"v":34901.21279670798,"d":"34,901.21 kn"}}]
[]
[{"$nulls":10},"Očekivani mjesečni prihod nakon završetka studija:",null,{"$f":"(OčekivanaGodišnjaZarada/12)","v":{"v":4166.666666666667,"d":"4,166.67 kn"}}]